bitfinex-derivatives/quotes_BTCF0:USTF0_20251206
["timestamp","ask_amount","ask_price","bid_price","bid_amount"]
[1765045335858,0.0677799,89751.0,89750.0,0.42077]
[1765045336265,0.0677799,89751.0,89750.0,0.05997]
[1765045336561,0.0677799,89751.0,89750.0,0.42077]
[1765045342962,0.05664,89751.0,89750.0,0.42077]
[1765045345770,0.08188592,89751.0,89750.0,0.42077]
[1765045347065,0.08188592,89751.0,89750.0,0.4299]
[1765045353566,0.08188592,89751.0,89750.0,0.0691]
[1765045353771,0.08188592,89751.0,89750.0,0.4299]
[1765045356974,0.08188592,89751.0,89750.0,0.44104]
[1765045357476,0.08188592,89751.0,89750.0,0.4299]
[1765045360378,0.00016714,89756.0,89755.0,0.05638]
[1765045360676,0.00016714,89756.0,89755.0,0.47638]
[1765045361766,0.00016714,89756.0,89755.0,0.47838]
[1765045365274,0.00011156,89762.0,89761.0,0.05792]
[1765045365476,0.00011156,89762.0,89761.0,0.8298586]
[1765045366778,0.00011156,89762.0,89761.0,0.8308586]
[1765045367781,0.00011156,89762.0,89761.0,0.8298586]
[1765045367981,0.00011156,89762.0,89761.0,0.8328586]
[1765045369480,1.56e-06,89762.0,89761.0,0.8328586]
[1765045369682,0.00016714,89770.0,89769.0,0.0824276]
[1765045369882,0.00016714,89770.0,89769.0,0.8432276]
[1765045370986,0.00016714,89770.0,89769.0,0.8462276]
[1765045372890,0.05826714,89770.0,89769.0,0.43509]
[1765045373676,0.02874714,89770.0,89769.0,0.43509]
[1765045374385,0.02874714,89770.0,89769.0,0.43209]
[1765045374587,0.02874714,89770.0,89769.0,0.43509]
[1765045376488,0.05826714,89770.0,89769.0,0.43509]
[1765045376790,0.02874714,89770.0,89769.0,0.43509]
[1765045377284,0.05826714,89770.0,89769.0,0.43509]
[1765045380187,0.00016714,89770.0,89769.0,0.43509]
[1765045380488,0.00016714,89770.0,89769.0,0.83509]
[1765045380684,0.0401255,89787.0,89786.0,0.05736]
[1765045380884,0.0683755,89787.0,89786.0,0.05736]
[1765045382990,0.0703755,89787.0,89786.0,0.05736]
[1765045383692,0.0683755,89787.0,89786.0,0.05736]
[1765045383992,0.0683755,89787.0,89786.0,0.05836]
[1765045384386,0.0846655,89787.0,89786.0,0.05836]
[1765045385791,0.0846655,89787.0,89786.0,0.05736]
[1765045386992,0.3946655,89787.0,89786.0,0.05736]
[1765045388491,0.42006854,89787.0,89786.0,0.05736]
[1765045395683,0.39264304,89787.0,89786.0,0.05736]
[1765045395994,0.39264304,89787.0,89786.0,0.06830077]
[1765045396388,0.05439304,89787.0,89786.0,0.06830077]
[1765045397294,0.08196304,89787.0,89786.0,0.06830077]
[1765045398081,0.08196304,89787.0,89786.0,0.06930077]
[1765045398589,0.08196304,89787.0,89786.0,0.06830077]
[1765045398789,0.08196304,89787.0,89786.0,0.06930077]
[1765045400194,0.05656,89787.0,89786.0,0.06930077]
[1765045401195,0.07356,89787.0,89786.0,0.05836]
[1765045403198,0.38356,89787.0,89786.0,0.05836]
[1765045403499,0.40900728,89787.0,89786.0,0.001]
[1765045404196,0.0671655,89786.0,89785.0,0.3608]
[1765045404401,0.3771655,89786.0,89785.0,0.3608]
[1765045404797,0.3771655,89786.0,89785.0,0.39059]
[1765045404995,0.3771655,89786.0,89785.0,0.4201]
[1765045408194,0.3771655,89786.0,89785.0,0.39059]
[1765045409902,0.3771655,89786.0,89785.0,0.4201]
[1765045412606,0.3771655,89786.0,89785.0,0.3608]
[1765045412810,0.07303,89778.0,89777.0,0.4201]
[1765045413608,0.38303,89778.0,89777.0,0.4201]
[1765045414010,0.3941665,89778.0,89777.0,0.4211]
[1765045414712,0.3941665,89778.0,89777.0,0.3618]
[1765045414912,0.3941665,89778.0,89777.0,0.001]
[1765045415120,0.41962273,89778.0,89777.0,0.001]
[1765045415315,0.0787883,89764.0,89763.0,0.0593]
[1765045415909,0.3887883,89764.0,89763.0,0.0593]
[1765045416923,0.05603,89762.0,89761.0,0.00016714]
[1765045417223,0.36603,89762.0,89761.0,0.00016714]
[1765045418224,0.36803,89762.0,89761.0,0.00016714]
[1765045420718,0.39346318,89762.0,89761.0,0.00016714]
[1765045422424,0.39346318,89762.0,89761.0,0.02995714]
[1765045423624,0.39346318,89762.0,89761.0,0.00016714]
[1765045424222,0.36803,89762.0,89761.0,0.00016714]
[1765045429533,0.39340699,89762.0,89761.0,0.00016714]
[1765045429835,0.06964,89754.0,89753.0,0.3608]
[1765045430040,0.37964,89754.0,89753.0,0.3608]
[1765045431046,0.0545,89747.0,89746.0,0.06831163]
[1765045431235,0.0545,89747.0,89746.0,0.05712]
[1765045431543,0.0656404,89747.0,89746.0,0.05712]
[1765045432041,0.0656404,89747.0,89746.0,0.06806795]
[1765045432634,0.0656404,89747.0,89746.0,0.07006795]
[1765045439942,0.0545,89747.0,89746.0,0.07006795]
[1765045451549,0.0545,89747.0,89746.0,0.43086795]
[1765045463671,0.02725,89747.0,89746.0,0.43086795]
[1765045463875,0.0557,89747.0,89746.0,0.43086795]
[1765045472383,0.0111403,89748.0,89747.0,0.05775]
[1765045472777,0.03650384,89748.0,89747.0,0.05775]
[1765045472977,0.06370384,89748.0,89747.0,0.05775]
[1765045473477,0.09215384,89748.0,89747.0,0.05775]
[1765045473878,0.09215384,89748.0,89747.0,0.05975]
[1765045475286,0.0667903,89748.0,89747.0,0.05975]
[1765045477887,0.0667903,89748.0,89747.0,0.42055]
[1765045485896,0.0667903,89748.0,89747.0,0.05975]
[1765045486094,0.0667903,89748.0,89747.0,0.42055]
[1765045486494,0.0667903,89748.0,89747.0,0.05975]
[1765045486694,0.0667903,89748.0,89747.0,0.42055]
[1765045489999,0.0272,89748.0,89747.0,0.42055]
[1765045490995,0.41944,89765.0,89760.0,0.01647]
[1765045491201,0.0403381,89765.0,89764.0,0.43064]
[1765045491394,0.065836,89765.0,89764.0,0.43064]
[1765045491900,0.095276,89765.0,89764.0,0.43064]
[1765045492391,0.0697781,89765.0,89764.0,0.43064]
[1765045493197,0.0727781,89765.0,89764.0,0.43064]
[1765045494301,0.0697781,89765.0,89764.0,0.43164]
[1765045496999,0.05787714,89772.0,89771.0,0.05915]
[1765045497204,0.0833082,89772.0,89771.0,0.05915]
[1765045497904,0.0944455,89772.0,89771.0,0.05915]
[1765045498608,0.0255982,89772.0,89771.0,0.05915]
[1765045498805,0.03005714,89772.0,89771.0,0.05915]
[1765045499510,0.03105714,89772.0,89771.0,0.05915]
[1765045499898,0.00116714,89772.0,89771.0,0.05915]
[1765045500400,0.00016714,89772.0,89771.0,0.05915]
[1765045500599,0.05787714,89772.0,89771.0,0.05915]
[1765045502104,0.37853714,89772.0,89771.0,0.05915]
[1765045503898,0.12853714,89772.0,89771.0,0.05915]
[1765045504697,0.05771,89768.0,89767.0,0.41995]
[1765045505005,0.36771,89768.0,89767.0,0.41995]
[1765045505403,0.39312224,89768.0,89767.0,0.39032]
[1765045507006,0.39412224,89768.0,89767.0,0.39032]
[1765045508103,0.39412224,89768.0,89767.0,0.41995]
[1765045508309,0.39412224,89768.0,89767.0,0.39032]
[1765045508503,0.39312224,89768.0,89767.0,0.39032]
[1765045508704,0.39412224,89768.0,89767.0,0.41995]
[1765045511713,0.3932296,89768.0,89767.0,0.41995]
[1765045513017,0.4043674,89768.0,89767.0,0.41995]
[1765045514322,0.3798478,89768.0,89767.0,0.41995]
[1765045515220,0.40437656,89768.0,89767.0,0.41995]
[1765045515423,0.3798478,89768.0,89767.0,0.41995]
[1765045516927,0.071,89768.0,89767.0,0.41995]
[1765045517725,0.09859,89768.0,89767.0,0.41995]
[1765045517925,0.1097278,89768.0,89767.0,0.41995]
[1765045518124,0.1379078,89768.0,89767.0,0.41995]
[1765045518826,0.1379078,89768.0,89767.0,0.42095]
[1765045519314,0.1379078,89768.0,89767.0,0.48089001]
[1765045520126,0.12677,89768.0,89767.0,0.48089001]
[1765045520323,0.00016714,89772.0,89771.0,0.05608]
[1765045520928,0.067906,89783.0,89781.0,0.01662]
[1765045521229,0.02455818,89782.0,89781.0,0.0727]
[1765045522330,0.003,89783.0,89782.0,0.05608]
[1765045522531,0.0111353,89788.0,89782.0,0.05608]
[1765045522728,0.02454453,89787.0,89786.0,0.05608]
[1765045524530,0.05213453,89787.0,89786.0,0.05608]
[1765045524832,0.05213453,89787.0,89786.0,0.05708]
[1765045525934,0.05213453,89787.0,89786.0,0.41788]
[1765045526134,0.08131453,89787.0,89786.0,0.41788]
[1765045528437,0.02454453,89787.0,89786.0,0.82788]
[1765045528641,0.02454453,89787.0,89786.0,0.41788]
[1765045528834,0.05213453,89787.0,89786.0,0.41788]
[1765045529139,0.08131453,89787.0,89786.0,0.41788]
[1765045531135,0.39131453,89787.0,89786.0,0.41788]
[1765045531343,0.40786453,89787.0,89786.0,0.41788]
[1765045531937,0.40786453,89787.0,89786.0,0.05708]
[1765045532442,0.40786453,89787.0,89786.0,0.05608]
[1765045532647,0.40786453,89787.0,89786.0,0.05708]
[1765045533837,0.40786453,89787.0,89786.0,0.05608]
[1765045534038,0.40786453,89787.0,89777.0,0.3608]
[1765045534039,0.0679065,89778.0,89777.0,0.41688]
[1765045534243,0.40245103,89778.0,89777.0,0.41688]
[1765045535131,0.3779065,89778.0,89777.0,0.41888]
[1765045536945,0.3779065,89778.0,89777.0,0.41688]
[1765045537948,0.3779065,89778.0,89777.0,0.05608]
[1765045539947,0.3789065,89778.0,89777.0,0.05608]
[1765045542453,0.40368546,89778.0,89777.0,0.05608]
[1765045545551,0.3789065,89778.0,89777.0,0.05608]
[1765045546448,0.3963065,89778.0,89777.0,0.05608]
[1765045547455,0.42109896,89778.0,89777.0,0.05608]
[1765045548354,0.42109896,89778.0,89777.0,0.02813]
[1765045548749,0.42109896,89778.0,89777.0,0.05549]
[1765045554261,0.42109896,89778.0,89777.0,0.02813]
[1765045554462,0.067647,89774.0,89773.0,0.41675714]
[1765045555348,0.09244613,89774.0,89773.0,0.41675714]
[1765045556263,0.02479913,89774.0,89773.0,0.41675714]
[1765045556462,0.05292913,89774.0,89773.0,0.41675714]
[1765045557765,0.08130913,89774.0,89773.0,0.41675714]
[1765045558764,0.05292913,89774.0,89773.0,0.41775714]
[1765045559157,0.08278913,89774.0,89773.0,0.41775714]
[1765045560667,0.02479913,89774.0,89773.0,0.41775714]
[1765045560859,0.02479913,89774.0,89773.0,0.42889424]
[1765045562966,0.02479913,89774.0,89773.0,0.78969424]
[1765045564565,0.0111363,89780.0,89773.0,0.78969424]
[1765045564759,0.0111363,89780.0,89779.0,0.05594]
[1765045564959,0.0359382,89780.0,89779.0,0.05594]
[1765045566653,0.0633282,89780.0,89779.0,0.05594]
[1765045566860,0.0931882,89780.0,89779.0,0.05594]
[1765045567060,0.0931882,89780.0,89779.0,0.05894]
[1765045568961,0.0931882,89780.0,89779.0,0.05594]
[1765045569264,0.0111358,89784.0,89783.0,0.05594]
[1765045569459,0.0111358,89784.0,89783.0,0.41674]
[1765045569859,0.0683858,89784.0,89783.0,0.41674]
[1765045571561,0.0683858,89784.0,89783.0,0.41774]
[1765045572056,0.0683858,89784.0,89783.0,0.41674]
[1765045572256,0.0683858,89784.0,89783.0,0.41874]
[1765045574359,0.0385258,89784.0,89783.0,0.41874]
[1765045575270,0.00016714,89790.0,89783.0,0.41874]
[1765045575271,0.0385653,89788.0,89787.0,0.06445]
[1765045575467,0.09216876,89788.0,89787.0,0.06445]
[1765045576363,0.09216876,89788.0,89787.0,0.41545]
[1765045576571,0.0674653,89788.0,89787.0,0.41545]
[1765045578169,0.0111353,89788.0,89787.0,0.41545]
[1765045578366,0.02759714,89790.0,89789.0,0.05576]
[1765045578564,0.00016714,89790.0,89789.0,0.05576]
[1765045579072,0.02759714,89790.0,89789.0,0.05576]
[1765045579472,0.00016714,89790.0,89789.0,0.05576]
[1765045582578,0.00016714,89790.0,89789.0,0.44576]
[1765045588072,0.0385641,89798.0,89797.0,0.05576]
[1765045588271,0.0385641,89798.0,89797.0,0.41656]
[1765045588477,0.0674641,89798.0,89797.0,0.41656]
[1765045588967,0.0674641,89798.0,89797.0,0.42762513]
[1765045589568,0.0694641,89798.0,89797.0,0.42762513]
[1765045595583,0.09414221,89798.0,89797.0,0.42762513]
[1765045595883,0.09414221,89798.0,89797.0,0.43875933]
[1765045597083,0.08300811,89798.0,89797.0,0.43875933]
[1765045597278,0.02667811,89798.0,89797.0,0.82875933]
[1765045598184,0.002,89798.0,89797.0,0.82875933]
[1765045610791,0.002,89798.0,89797.0,1.34495933]
[1765045614987,0.00044542,89806.0,89805.0,0.0776032]
[1765045615189,0.0387329,89807.0,89806.0,0.05631]
[1765045615389,0.02471924,89807.0,89806.0,0.0674431]
[1765045615897,0.00082794,89807.0,89806.0,0.4374431]
[1765045616096,0.0111322,89813.0,89812.0,0.05631]
[1765045616294,0.0387322,89813.0,89812.0,0.44631]
[1765045617395,0.0670418,89817.0,89816.0,0.05631]
[1765045617592,0.0387318,89817.0,89816.0,0.41711]
[1765045618297,0.0670418,89817.0,89816.0,0.41711]
[1765045618494,0.0730418,89817.0,89816.0,0.41711]
[1765045625400,0.006,89817.0,89816.0,0.41711]
[1765045626003,0.06191,89817.0,89816.0,0.41711]
[1765045627802,0.07774,89817.0,89816.0,0.41711]
[1765045633106,0.06191,89817.0,89816.0,0.41711]
[1765045635008,0.07828,89817.0,89816.0,0.41711]
[1765045638905,0.07828,89817.0,89816.0,0.05631]
[1765045639105,0.07828,89817.0,89816.0,0.41711]
[1765045639803,0.06191,89817.0,89816.0,0.41711]
[1765045645512,0.08666937,89817.0,89816.0,0.41711]
[1765045646209,0.10303937,89817.0,89816.0,0.41711]
[1765045648717,0.08666937,89817.0,89816.0,0.41711]
[1765045653421,0.09574937,89817.0,89816.0,0.3608]
[1765045653720,0.09574937,89817.0,89793.0,0.01677]
[1765045653721,0.0679829,89807.0,89806.0,0.17608]
[1765045654021,0.40274227,89807.0,89806.0,0.17608]
[1765045655221,0.40574227,89807.0,89806.0,0.17608]
[1765045655616,0.3809829,89807.0,89806.0,0.17608]
[1765045657116,0.3809829,89807.0,89806.0,0.05658]
[1765045661032,0.3809829,89807.0,89806.0,0.41738]
[1765045661230,0.0709829,89807.0,89806.0,0.41738]
[1765045661729,0.05985,89807.0,89806.0,0.41738]
[1765045661926,0.05985,89807.0,89806.0,0.47730229]
[1765045662332,0.05985,89807.0,89806.0,0.41738]
[1765045670350,0.05985,89807.0,89806.0,0.05658]
[1765045670552,0.05985,89807.0,89806.0,0.41738]
[1765045674351,0.05985,89807.0,89806.0,0.47730229]
[1765045675551,0.05985,89807.0,89806.0,0.41738]
[1765045681249,0.05985,89807.0,89806.0,0.47730229]
[1765045682255,0.003,89807.0,89806.0,0.41738]
[1765045682557,0.003,89807.0,89806.0,0.78738]
[1765045682946,0.003,89807.0,89806.0,0.7985131]
[1765045684856,0.06007,89807.0,89806.0,0.41738]
[1765045688253,0.0327,89807.0,89806.0,0.41738]
[1765045688557,0.003,89807.0,89806.0,0.84738]
[1765045689247,0.003,89807.0,89806.0,1.3635]
[1765045691350,0.003,89807.0,89806.0,1.0027]
[1765045691559,0.003,89807.0,89806.0,1.7243]
[1765045695645,0.02755633,89807.0,89806.0,1.7243]
[1765045701560,0.02755267,89807.0,89806.0,1.7243]
[1765045703860,0.05753267,89807.0,89806.0,1.7243]
[1765045704056,0.08471267,89807.0,89806.0,1.2943]
[1765045705666,0.06016,89807.0,89806.0,1.2943]
[1765045706963,0.003,89807.0,89806.0,1.2943]
[1765045707463,0.003,89807.0,89806.0,1.6443]
[1765045712160,0.06016,89807.0,89806.0,1.6443]
[1765045713870,0.03298,89807.0,89806.0,1.6443]
[1765045715770,0.003,89807.0,89806.0,1.6443]
[1765045731485,0.003,89807.0,89806.0,1.66107]
[1765045735983,0.02717352,89807.0,89806.0,1.66107]
[1765045736485,0.05516352,89807.0,89806.0,1.66107]
[1765045740090,0.02717352,89807.0,89806.0,1.66107]
[1765045740689,0.05516352,89807.0,89806.0,1.66107]
[1765045741986,0.08297352,89807.0,89806.0,1.72106823]
[1765045742886,0.08297352,89807.0,89806.0,0.99946823]
[1765045743090,0.08297352,89807.0,89806.0,1.36026823]
[1765045745483,0.0588,89807.0,89806.0,1.36026823]
[1765045745693,0.0588,89807.0,89806.0,1.30027]
[1765045748193,0.0588,89807.0,89806.0,0.9335]
[1765045748391,0.0588,89807.0,89806.0,0.41738]
[1765045748594,0.0588,89807.0,89806.0,0.9335]
[1765045756598,0.0588,89807.0,89806.0,0.41738]
[1765045757600,0.3688,89807.0,89806.0,0.41738]
[1765045758002,0.3688,89807.0,89806.0,0.3608]
[1765045758301,0.05659,89804.0,89803.0,0.14686]
[1765045758504,0.36659,89804.0,89803.0,0.05549]
[1765045759797,0.36859,89804.0,89803.0,0.05549]
[1765045766412,0.38598,89804.0,89803.0,0.05549]
[1765045768395,0.38598,89804.0,89803.0,0.41629]
[1765045773523,0.36859,89804.0,89803.0,0.41629]
[1765045780521,0.05859,89804.0,89803.0,0.41629]
[1765045780721,0.09859,89804.0,89803.0,0.41629]
[1765045781227,0.05859,89804.0,89803.0,0.41629]
[1765045781424,0.05859,89804.0,89803.0,0.05549]
[1765045781725,0.002,89804.0,89803.0,0.4274234]
[1765045782727,0.06098,89804.0,89803.0,0.41629]
[1765045784129,0.03111,89804.0,89803.0,0.83629]
[1765045784430,0.06098,89804.0,89803.0,0.83629]
[1765045793438,0.06098,89804.0,89803.0,0.47549]
[1765045793629,0.06098,89804.0,89803.0,0.83629]
[1765045794833,0.06098,89804.0,89803.0,0.47549]
[1765045795136,0.06098,89804.0,89803.0,0.83629]
[1765045798645,0.06098,89804.0,89803.0,0.91633671]
[1765045800847,0.06098,89804.0,89803.0,0.83629]
[1765045803649,0.3877,89804.0,89803.0,0.41629]
[1765045803947,0.083344,89798.0,89794.0,0.05819494]
[1765045804146,0.0111369,89775.0,89773.0,0.00010666]
[1765045804337,0.05692,89741.0,89740.0,0.24095451]
[1765045804538,0.05692,89746.0,89745.0,0.0641]
[1765045804848,0.0680597,89753.0,89752.0,0.05489]
[1765045805048,0.0680597,89753.0,89752.0,0.06620521]
[1765045805237,0.06815742,89753.0,89752.0,0.06620521]
[1765045805434,0.06815742,89753.0,89752.0,0.05489]
[1765045805634,0.06815742,89753.0,89752.0,0.06624865]
[1765045806147,0.06815742,89753.0,89752.0,0.05489]
[1765045806741,0.06815742,89753.0,89752.0,0.06589694]
[1765045807143,0.06815742,89753.0,89752.0,0.06889694]
[1765045807644,0.05701772,89753.0,89752.0,0.06889694]
[1765045807855,0.05701772,89753.0,89752.0,0.05789]
[1765045808448,0.02858772,89753.0,89752.0,0.05789]
[1765045808752,0.05701772,89753.0,89752.0,0.05789]
[1765045810440,0.05701772,89753.0,89752.0,0.06922967]
[1765045810740,0.05701772,89753.0,89752.0,0.05789]
[1765045811342,9.772e-05,89753.0,89752.0,0.07476]
[1765045813459,9.772e-05,89753.0,89752.0,0.08605855]
[1765045815546,9.772e-05,89753.0,89752.0,0.46605855]
[1765045820552,9.772e-05,89753.0,89752.0,0.58555855]
[1765045822350,9.772e-05,89753.0,89752.0,0.94635855]
[1765045823059,9.772e-05,89753.0,89752.0,0.95749835]
[1765045823653,9.772e-05,89753.0,89752.0,0.71749835]
[1765045824252,9.772e-05,89753.0,89752.0,0.93749835]
[1765045826755,0.01123732,89753.0,89752.0,0.89749835]
[1765045826956,9.772e-05,89753.0,89752.0,0.89749835]
[1765045833866,9.772e-05,89753.0,89752.0,0.53669835]
[1765045834068,9.772e-05,89753.0,89752.0,0.89749835]
[1765045834365,0.09267772,89753.0,89752.0,0.61749835]
[1765045834571,0.09267772,89753.0,89752.0,0.52207855]
[1765045834959,0.09267772,89753.0,89752.0,0.14998]
[1765045835167,0.82990841,89753.0,89752.0,1e-07]
[1765045835670,0.09258,89745.0,89744.0,0.00016715]
[1765045835867,0.79061069,89745.0,89744.0,0.00016715]
[1765045836461,0.80175129,89745.0,89744.0,0.00016715]
[1765045838269,0.80175129,89745.0,89744.0,0.00516715]
[1765045846373,0.82832129,89745.0,89744.0,0.00516715]
[1765045847374,0.8010906,89745.0,89744.0,0.00516715]
[1765045847683,0.82826725,89745.0,89744.0,0.00516715]
[1765045851177,0.8010906,89745.0,89744.0,0.00516715]
[1765045861787,0.8010906,89745.0,89744.0,0.08354715]
[1765045864096,0.82834619,89745.0,89744.0,0.08354715]
[1765045867900,0.60834619,89745.0,89744.0,0.08354715]
[1765045876113,1.12502619,89745.0,89744.0,0.08354715]
[1765045878902,0.49177619,89745.0,89744.0,0.08354715]
[1765045879107,0.48063559,89745.0,89744.0,0.10633715]
[1765045879307,0.02725559,89745.0,89744.0,0.51633715]
[1765045879509,0.07960177,89752.0,89751.0,0.07439]
[1765045879706,0.10724979,89752.0,89751.0,0.07439]
[1765045880121,9.772e-05,89753.0,89752.0,0.07439]
[1765045880316,9.772e-05,89753.0,89752.0,0.18439]
[1765045880706,0.03697772,89753.0,89752.0,0.18439]
[1765045881719,0.07268772,89753.0,89752.0,0.18439]
[1765045882408,0.07268772,89753.0,89752.0,0.18639]
[1765045883008,0.07268772,89753.0,89752.0,0.18839]
[1765045890916,9.772e-05,89753.0,89752.0,0.47839]
[1765045891117,0.3608,89770.0,89760.0,0.1083188]
[1765045891118,0.0111377,89769.0,89760.0,0.1083188]
[1765045891416,0.3608,89770.0,89760.0,0.1083188]
[1765045891417,0.011138,89766.0,89760.0,0.3183188]
[1765045891612,0.03704708,89761.0,89760.0,0.3183188]
[1765045892011,0.07275708,89761.0,89760.0,0.3183188]
[1765045892213,0.07275708,89761.0,89760.0,0.0855288]
[1765045892620,0.07275708,89761.0,89760.0,0.0875288]
[1765045893709,0.07275708,89761.0,89760.0,0.07639]
[1765045925648,0.09965653,89761.0,89760.0,0.07639]
[1765045930948,0.09957742,89761.0,89760.0,0.07639]
[1765045933652,0.40957742,89761.0,89760.0,0.002]
[1765045934062,0.0712906,89745.0,89744.0,0.00016715]
[1765045934857,0.40809588,89745.0,89744.0,0.00016715]
[1765045935652,0.3812906,89745.0,89744.0,0.00016715]
[1765045935955,0.3822906,89745.0,89744.0,0.01716715]
[1765045937761,0.3822906,89745.0,89744.0,0.04700715]
[1765045939647,0.7430906,89745.0,89744.0,0.04700715]
[1765045940978,0.4330906,89745.0,89744.0,0.07768715]
[1765045945472,0.0722906,89745.0,89744.0,0.07768715]
[1765045945677,0.06115,89745.0,89744.0,0.07768715]
[1765045947868,0.06115,89745.0,89744.0,0.08882785]
[1765045951575,0.06115,89745.0,89744.0,0.07768715]
[1765045952780,0.06115,89745.0,89744.0,0.08882785]
[1765045954084,0.03005,89745.0,89744.0,0.08882785]
[1765045954285,0.03005,89745.0,89744.0,0.44882785]
[1765045954477,0.001,89745.0,89744.0,0.44882785]
[1765045954985,0.03005,89745.0,89744.0,0.44882785]
[1765045955287,0.06115,89745.0,89744.0,0.44882785]
[1765045956587,0.06115,89745.0,89744.0,0.80962785]
[1765045957487,0.03005,89745.0,89744.0,0.80962785]
[1765045957791,0.06115,89745.0,89744.0,0.80962785]
[1765045964385,0.06115,89745.0,89744.0,0.44962785]
[1765045967789,0.05958,89745.0,89744.0,0.44962785]
[1765045968595,0.02861,89745.0,89744.0,0.44962785]
[1765045970996,0.05814,89745.0,89744.0,0.44962785]
[1765045976300,0.05814,89745.0,89744.0,0.08882785]
[1765045976594,0.05814,89745.0,89744.0,0.44962785]
[1765045980597,0.05814,89745.0,89744.0,0.07768715]
[1765045986005,0.05814,89745.0,89744.0,0.09840785]
[1765045987305,0.05814,89745.0,89744.0,0.52840785]
[1765045987509,0.001,89745.0,89744.0,0.52840785]
[1765045993614,0.02987,89745.0,89744.0,0.52840785]
[1765045994014,0.05866,89745.0,89744.0,0.52840785]
[1765045996726,0.02987,89745.0,89744.0,0.52840785]
[1765045996918,0.001,89745.0,89744.0,0.52840785]
[1765045997715,0.001,89745.0,89744.0,1.04492785]
[1765045997917,0.3608,89753.0,89752.0,0.0809998]
[1765045998125,0.3608,89753.0,89752.0,0.9575198]
[1765045999210,0.38967,89753.0,89752.0,0.9575198]
[1765045999409,0.38967,89753.0,89752.0,0.9595198]
[1765046002610,0.02887,89753.0,89752.0,0.9595198]
[1765046006428,0.05766,89753.0,89752.0,0.9595198]
[1765046014234,0.00016708,89761.0,89760.0,0.0795188]
[1765046014531,0.3608,89772.0,89771.0,0.05698]
[1765046014834,0.41846,89772.0,89771.0,1.00346]
[1765046015534,0.42246,89772.0,89771.0,1.00346]
[1765046016622,0.41846,89772.0,89771.0,1.00546]
[1765046016824,0.41946,89772.0,89771.0,1.00546]
[1765046018036,0.41946,89772.0,89771.0,1.00346]
[1765046018239,0.41846,89772.0,89771.0,1.00546]
[1765046018927,0.05766,89772.0,89771.0,1.00546]
[1765046020040,0.0687965,89779.0,89778.0,0.06658]
[1765046020244,0.0687965,89779.0,89778.0,0.48658]
[1765046021125,0.02887,89779.0,89778.0,0.48658]
[1765046021329,0.011136,89783.0,89782.0,0.05541]
[1765046021538,0.0673855,89787.0,89786.0,0.05541]
[1765046024138,0.0673855,89787.0,89786.0,0.05741]
[1765046024930,0.0673855,89787.0,89786.0,0.07019355]
[1765046027341,0.0831655,89787.0,89786.0,0.07019355]
[1765046031439,0.0673855,89787.0,89786.0,0.07019355]
[1765046031643,0.0673855,89787.0,89786.0,0.06819355]
[1765046031835,0.05625,89787.0,89786.0,0.06819355]
[1765046032035,0.0391945,89795.0,89793.0,0.0276646]
[1765046032342,0.0391945,89795.0,89794.0,0.05541]
[1765046032544,0.0111345,89795.0,89794.0,0.05541]
[1765046032841,0.0673845,89795.0,89794.0,0.05541]
[1765046034439,0.0683845,89795.0,89794.0,0.05541]
[1765046041751,0.05725,89795.0,89794.0,0.05541]
[1765046048653,0.001,89795.0,89794.0,0.46541]
[1765046049149,0.0569,89795.0,89794.0,0.46541]
[1765046050054,0.0569,89795.0,89794.0,0.05541]
[1765046052856,0.0569,89795.0,89794.0,0.41621]
[1765046054452,0.0569,89795.0,89794.0,0.76621]
[1765046054758,0.02948,89795.0,89794.0,0.76621]
[1765046055056,0.05939,89795.0,89794.0,0.76621]
[1765046055648,0.05576213,89795.0,89794.0,0.76621]
[1765046056344,0.08567213,89795.0,89794.0,0.76621]
[1765046064058,0.08567213,89795.0,89794.0,1.28245]
[1765046065361,0.05576213,89795.0,89794.0,1.28245]
[1765046065861,0.02948,89795.0,89794.0,1.28245]
[1765046066060,0.05939,89795.0,89794.0,1.28245]
[1765046067559,0.05939,89795.0,89794.0,0.05541]
[1765046069662,0.0853454,89787.0,89786.0,0.13403266]
[1765046069868,0.05764,89786.0,89785.0,0.00016705]
[1765046070061,0.39395892,89786.0,89785.0,0.00016705]
[1765046071467,0.39395892,89786.0,89785.0,0.00216705]
[1765046072467,0.39395892,89786.0,89785.0,0.00016705]
[1765046074465,0.39495892,89786.0,89785.0,0.00016705]
[1765046075470,0.39595892,89786.0,89785.0,0.00016705]
[1765046075672,0.36964,89786.0,89785.0,0.00016705]
[1765046080777,0.36964,89786.0,89785.0,0.02719705]
[1765046080969,0.36964,89786.0,89785.0,0.00016705]
[1765046081880,0.36964,89786.0,89785.0,0.02719705]
[1765046082074,0.36764,89786.0,89785.0,0.02719705]
[1765046082275,0.36964,89786.0,89785.0,0.02719705]
[1765046082670,0.36964,89786.0,89785.0,0.05490705]
[1765046083066,0.36964,89786.0,89785.0,0.02719705]
[1765046085673,0.73044,89786.0,89785.0,0.02719705]
[1765046085870,0.36964,89786.0,89785.0,0.02719705]
[1765046086071,0.73044,89786.0,89785.0,0.02719705]
[1765046089479,0.73044,89786.0,89785.0,0.00016705]
[1765046089877,0.05752,89771.0,89770.0,0.24319187]
[1765046090083,0.0686574,89771.0,89770.0,0.08103]
[1765046090275,0.3786574,89771.0,89770.0,0.07382515]
[1765046091382,0.3786574,89771.0,89770.0,0.07682515]
[1765046092083,0.1286574,89771.0,89770.0,0.07682515]
[1765046092384,0.05752,89771.0,89770.0,0.07682515]
[1765046093187,0.05752,89771.0,89770.0,0.07382515]
[1765046093376,0.05752,89771.0,89770.0,0.07582515]
[1765046099292,0.05752,89771.0,89770.0,0.15575781]
[1765046103488,0.05752,89771.0,89770.0,0.07582515]
[1765046110303,0.05752,89771.0,89770.0,0.08696265]
[1765046111303,0.05752,89771.0,89770.0,0.07582515]
[1765046112095,0.36752,89771.0,89770.0,0.07582515]
[1765046116812,0.36752,89771.0,89770.0,0.006]
[1765046117003,0.39406357,89771.0,89770.0,0.006]
[1765046120300,0.08406357,89771.0,89770.0,0.06303]
[1765046120500,0.38806,89775.0,89774.0,0.068167]
[1765046120904,0.02726,89775.0,89774.0,0.068167]
[1765046121105,0.0553,89775.0,89774.0,0.068167]
[1765046122011,0.0553,89775.0,89774.0,0.069167]
[1765046123015,0.0553,89775.0,89774.0,0.068167]